[Event "Early Titled Tuesday Blitz | February 8 2022"]
[White "Politov, Pavel Y."]
[Black "Navalgund, Niranjan"]
[WhiteFideId "24110515"]
[BlackFideId "5030854"]
[WhiteElo "2090"]
[BlackElo "2290"]
[Result "0-1"]
[Round "04"]
[TimeControl "180+1"]
[Date "2022.02.08"]
[WhiteClock "0:00:01"]
[BlackClock "0:00:10"]

1. e4 {[%clk 0:03:00]}  e5 {[%clk 0:02:56]} 2. Nf3 {[%clk 0:03:00]}  Nc6 {[%clk 0:02:50]} 3. Bc4 {[%clk 0:03:00]}  Nf6 {[%clk 0:02:48]} 4. d3 {[%clk 0:03:00]}  h6 {[%clk 0:02:44]} 5. c3 {[%clk 0:02:59]}  d6 {[%clk 0:02:40]} 6. O-O {[%clk 0:02:58]}  g5 {[%clk 0:02:39]} 7. Nbd2 {[%clk 0:02:45]}  Bg4 {[%clk 0:02:32]} 8. h3 {[%clk 0:02:29]}  Bh5 {[%clk 0:02:26]} 9. a4 {[%clk 0:02:20]}  g4 {[%clk 0:02:24]} 10. hxg4 {[%clk 0:01:48]}  Bxg4 {[%clk 0:01:43]} 11. b4 {[%clk 0:01:44]}  Nh5 {[%clk 0:01:39]} 12. d4 {[%clk 0:01:34]}  Qf6 {[%clk 0:01:34]} 13. d5 {[%clk 0:01:29]}  Ne7 {[%clk 0:01:24]} 14. a5 {[%clk 0:01:27]}  Nf4 {[%clk 0:01:08]} 15. Re1 {[%clk 0:01:19]}  Rg8 {[%clk 0:01:07]} 16. g3 {[%clk 0:01:16]}  Neg6 {[%clk 0:00:59]} 17. Kh2 {[%clk 0:01:09]}  h5 {[%clk 0:00:50]} 18. Bf1 {[%clk 0:00:59]}  h4 {[%clk 0:00:49]} 19. gxf4 {[%clk 0:00:55]}  Qxf4+ {[%clk 0:00:49]} 20. Kh1 {[%clk 0:00:52]}  h3 {[%clk 0:00:49]} 21. Bd3 {[%clk 0:00:37]}  Nh4 {[%clk 0:00:44]} 22. Be2 {[%clk 0:00:34]}  Bd7 {[%clk 0:00:27]} 23. Nf1 {[%clk 0:00:30]}  Qg4 {[%clk 0:00:26]} 24. Ng3 {[%clk 0:00:27]}  Ng2 {[%clk 0:00:23]} 25. Nxe5 {[%clk 0:00:22]}  Qh4 {[%clk 0:00:20]} 26. Nf3 {[%clk 0:00:19]}  Qf6 {[%clk 0:00:17]} 27. Bd2 {[%clk 0:00:12]}  O-O-O {[%clk 0:00:16]} 28. Bf1 {[%clk 0:00:09]}  Bh6 {[%clk 0:00:13]} 29. Bxg2 {[%clk 0:00:06]}  hxg2+ {[%clk 0:00:13]} 30. Kxg2 {[%clk 0:00:06]}  Bg4 {[%clk 0:00:12]} 31. Bxh6 {[%clk 0:00:02]}  Qxh6 {[%clk 0:00:12]} 32. Rh1 {[%clk 0:00:01]}  Qf4 {[%clk 0:00:12]} 33. Qe2 {[%clk 0:00:01]}  Rg6 {[%clk 0:00:11]} 34. Qe3 {[%clk 0:00:02]}  Qf6 {[%clk 0:00:10]} 35. Rh4 {[%clk 0:00:01]}  Rdg8 {[%clk 0:00:10]} 36. Rah1 {[%clk 0:00:02]}  Kb8 {[%clk 0:00:10]} 37. Rh7 {[%clk 0:00:01]}  a6 {[%clk 0:00:10]} 0-1


[Site "https://www.chess.com"]

[Event "Early Titled Tuesday Blitz | February 8 2022"]
[White "Pourramezanali, Amirreza"]
[Black "Ponkratov, Pavel"]
[WhiteFideId "12511412"]
[BlackFideId "4157800"]
[WhiteElo "2376"]
[BlackElo "2487"]
[Result "0-1"]
[Round "04"]
[TimeControl "180+1"]
[Date "2022.02.08"]
[WhiteClock "0:00:03"]
[BlackClock "0:01:18"]

1. d4 {[%clk 0:02:53]}  d5 {[%clk 0:02:59]} 2. c4 {[%clk 0:02:52]}  e6 {[%clk 0:03:00]} 3. Nc3 {[%clk 0:02:52]}  c6 {[%clk 0:02:58]} 4. e4 {[%clk 0:02:52]}  dxe4 {[%clk 0:02:58]} 5. Nxe4 {[%clk 0:02:52]}  c5 {[%clk 0:02:58]} 6. dxc5 {[%clk 0:02:43]}  Qxd1+ {[%clk 0:02:57]} 7. Kxd1 {[%clk 0:02:44]}  Na6 {[%clk 0:02:57]} 8. Nd6+ {[%clk 0:02:43]}  Bxd6 {[%clk 0:02:51]} 9. cxd6 {[%clk 0:02:44]}  Nf6 {[%clk 0:02:51]} 10. f3 {[%clk 0:02:36]}  O-O {[%clk 0:02:48]} 11. b3 {[%clk 0:02:25]}  Rd8 {[%clk 0:02:41]} 12. Ba3 {[%clk 0:02:24]}  b6 {[%clk 0:02:41]} 13. Kc2 {[%clk 0:02:19]}  Ne8 {[%clk 0:01:57]} 14. Rd1 {[%clk 0:02:18]}  Nc5 {[%clk 0:01:57]} 15. b4 {[%clk 0:02:00]}  Nb7 {[%clk 0:01:57]} 16. c5 {[%clk 0:01:59]}  a5 {[%clk 0:01:57]} 17. c6 {[%clk 0:01:49]}  Nbxd6 {[%clk 0:01:57]} 18. b5 {[%clk 0:01:48]}  e5 {[%clk 0:01:57]} 19. Bd3 {[%clk 0:01:14]}  Be6 {[%clk 0:01:54]} 20. Bxd6 {[%clk 0:01:05]}  Rxd6 {[%clk 0:01:52]} 21. Ne2 {[%clk 0:01:05]}  Bxa2 {[%clk 0:01:49]} 22. Nc3 {[%clk 0:01:05]}  Be6 {[%clk 0:01:49]} 23. Rhe1 {[%clk 0:00:47]}  a4 {[%clk 0:01:49]} 24. Kc1 {[%clk 0:00:32]}  a3 {[%clk 0:01:48]} 25. Be4 {[%clk 0:00:27]}  Rd4 {[%clk 0:01:43]} 26. Rxd4 {[%clk 0:00:12]}  exd4 {[%clk 0:01:43]} 27. Nd5 {[%clk 0:00:13]}  Bxd5 {[%clk 0:01:34]} 28. Bxd5 {[%clk 0:00:14]}  Nc7 {[%clk 0:01:34]} 29. Bc4 {[%clk 0:00:13]}  Kf8 {[%clk 0:01:35]} 30. Kc2 {[%clk 0:00:12]}  Ra5 {[%clk 0:01:33]} 31. Kd3 {[%clk 0:00:06]}  a2 {[%clk 0:01:23]} 32. Ra1 {[%clk 0:00:04]}  Nxb5 {[%clk 0:01:23]} 33. Bxb5 {[%clk 0:00:02]}  Rxb5 {[%clk 0:01:24]} 34. Rxa2 {[%clk 0:00:03]}  Rc5 {[%clk 0:01:24]} 35. Ra8+ {[%clk 0:00:03]}  Ke7 {[%clk 0:01:24]} 36. Ra7+ {[%clk 0:00:04]}  Ke6 {[%clk 0:01:24]} 37. c7 {[%clk 0:00:04]}  Kd5 {[%clk 0:01:21]} 38. c8=Q {[%clk 0:00:04]}  Rxc8 {[%clk 0:01:21]} 39. Rxf7 {[%clk 0:00:04]}  Rc3+ {[%clk 0:01:21]} 40. Kd2 {[%clk 0:00:04]}  g6 {[%clk 0:01:20]} 41. Rxh7 {[%clk 0:00:05]}  Ra3 {[%clk 0:01:20]} 42. Rd7+ {[%clk 0:00:03]}  Kc4 {[%clk 0:01:19]} 43. Rc7+ {[%clk 0:00:03]}  Kb5 {[%clk 0:01:18]} 44. Rd7 {[%clk 0:00:03]}  Kc5 {[%clk 0:01:16]} 45. h4 {[%clk 0:00:03]}  Ra2+ {[%clk 0:01:16]} 46. Kd3 {[%clk 0:00:04]}  Rxg2 {[%clk 0:01:17]} 47. Rxd4 {[%clk 0:00:03]}  Rd2+ {[%clk 0:01:16]} 48. Kxd2 {[%clk 0:00:03]}  Kxd4 {[%clk 0:01:17]} 49. Ke2 {[%clk 0:00:03]}  b5 {[%clk 0:01:17]} 50. Kd2 {[%clk 0:00:04]}  b4 {[%clk 0:01:17]} 51. Kc2 {[%clk 0:00:03]}  Ke3 {[%clk 0:01:18]} 52. Kb3 {[%clk 0:00:03]}  Kxf3 {[%clk 0:01:18]} 0-1


[Site "https://www.chess.com"]

[Event "Early Titled Tuesday Blitz | February 8 2022"]
[White "Przybylski, Wojciech"]
[Black "Van den Dikkenberg, Erik"]
[WhiteFideId "1117599"]
[BlackFideId "1005880"]
[WhiteElo "2133"]
[BlackElo "2118"]
[Result "1-0"]
[Round "04"]
[TimeControl "180+1"]
[Date "2022.02.08"]
[WhiteClock "0:00:02"]
[BlackClock "0:00:04"]

1. d4 {[%clk 0:03:00]}  Nf6 {[%clk 0:02:59]} 2. c4 {[%clk 0:02:58]}  g6 {[%clk 0:02:59]} 3. Nc3 {[%clk 0:02:52]}  Bg7 {[%clk 0:03:00]} 4. e4 {[%clk 0:02:51]}  d6 {[%clk 0:02:57]} 5. Nf3 {[%clk 0:02:51]}  O-O {[%clk 0:02:56]} 6. Be2 {[%clk 0:02:51]}  e5 {[%clk 0:02:54]} 7. O-O {[%clk 0:02:51]}  Nc6 {[%clk 0:02:54]} 8. h3 {[%clk 0:02:47]}  exd4 {[%clk 0:02:51]} 9. Nxd4 {[%clk 0:02:47]}  Re8 {[%clk 0:02:51]} 10. Nxc6 {[%clk 0:02:44]}  bxc6 {[%clk 0:02:51]} 11. Qc2 {[%clk 0:02:44]}  Rb8 {[%clk 0:02:48]} 12. Be3 {[%clk 0:02:42]}  a5 {[%clk 0:02:40]} 13. b3 {[%clk 0:02:39]}  Be6 {[%clk 0:02:18]} 14. Rad1 {[%clk 0:02:37]}  Qc8 {[%clk 0:02:17]} 15. f4 {[%clk 0:02:21]}  d5 {[%clk 0:02:08]} 16. cxd5 {[%clk 0:02:12]}  cxd5 {[%clk 0:01:47]} 17. e5 {[%clk 0:02:09]}  Ne4 {[%clk 0:01:15]} 18. Nxd5 {[%clk 0:01:58]}  Ng3 {[%clk 0:01:00]} 19. Rf3 {[%clk 0:01:57]}  Nxe2+ {[%clk 0:00:57]} 20. Qxe2 {[%clk 0:01:57]}  Qb7 {[%clk 0:00:55]} 21. Nc3 {[%clk 0:01:48]}  Bf8 {[%clk 0:00:49]} 22. Na4 {[%clk 0:01:39]}  Bd5 {[%clk 0:00:45]} 23. Rf2 {[%clk 0:01:34]}  Bb4 {[%clk 0:00:35]} 24. Bd4 {[%clk 0:01:20]}  Rbd8 {[%clk 0:00:28]} 25. f5 {[%clk 0:01:01]}  Be4 {[%clk 0:00:24]} 26. f6 {[%clk 0:00:48]}  Rxd4 {[%clk 0:00:21]} 27. Rxd4 {[%clk 0:00:46]}  Rxe5 {[%clk 0:00:20]} 28. Rd8+ {[%clk 0:00:37]}  Bf8 {[%clk 0:00:20]} 29. Nc5 {[%clk 0:00:37]}  Rxc5 {[%clk 0:00:17]} 30. Qd2 {[%clk 0:00:33]}  Rd5 {[%clk 0:00:15]} 31. Rxf8+ {[%clk 0:00:14]}  Kxf8 {[%clk 0:00:13]} 32. Qh6+ {[%clk 0:00:15]}  Ke8 {[%clk 0:00:13]} 33. Qxh7 {[%clk 0:00:16]}  Rd1+ {[%clk 0:00:12]} 34. Kh2 {[%clk 0:00:15]}  Qd5 {[%clk 0:00:11]} 35. Qh8+ {[%clk 0:00:05]}  Kd7 {[%clk 0:00:11]} 36. Rf4 {[%clk 0:00:03]}  Qe5 {[%clk 0:00:10]} 37. Qh4 {[%clk 0:00:01]}  g5 {[%clk 0:00:10]} 38. Qg4+ {[%clk 0:00:02]}  Kd6 {[%clk 0:00:08]} 39. Qxd1+ {[%clk 0:00:02]}  Ke6 {[%clk 0:00:07]} 40. Qg4+ {[%clk 0:00:02]}  Kd6 {[%clk 0:00:07]} 41. Qd1+ {[%clk 0:00:01]}  Kc6 {[%clk 0:00:07]} 42. Qc1+ {[%clk 0:00:01]}  Kb7 {[%clk 0:00:06]} 43. g3 {[%clk 0:00:01]}  gxf4 {[%clk 0:00:06]} 44. gxf4 {[%clk 0:00:02]}  Qd5 {[%clk 0:00:06]} 45. Qe3 {[%clk 0:00:02]}  Qd3 {[%clk 0:00:05]} 46. Qc5 {[%clk 0:00:02]}  Qd2+ {[%clk 0:00:04]} 47. Kg3 {[%clk 0:00:01]}  Qg2+ {[%clk 0:00:04]} 48. Kh4 {[%clk 0:00:02]}  Qf2+ {[%clk 0:00:04]} 49. Qxf2 {[%clk 0:00:02]}  Bf5 {[%clk 0:00:04]} 50. Qe3 {[%clk 0:00:02]} 1-0


[Site "https://www.chess.com"]

[Event "Early Titled Tuesday Blitz | February 8 2022"]
[White "Quintiliano Pinto, Renato R."]
[Black "Manelyuk, Daniil"]
[WhiteFideId "2117568"]
[BlackFideId "44173920"]
[WhiteElo "2439"]
[BlackElo "2222"]
[Result "1-0"]
[Round "04"]
[TimeControl "180+1"]
[Date "2022.02.08"]
[WhiteClock "0:02:09"]
[BlackClock "0:01:56"]

1. d4 {[%clk 0:02:48]}  Nf6 {[%clk 0:02:59]} 2. Nf3 {[%clk 0:02:48]}  c5 {[%clk 0:02:59]} 3. d5 {[%clk 0:02:47]}  b5 {[%clk 0:02:56]} 4. Bg5 {[%clk 0:02:45]}  Qb6 {[%clk 0:02:56]} 5. Bxf6 {[%clk 0:02:42]}  Qxf6 {[%clk 0:02:57]} 6. c3 {[%clk 0:02:42]}  d6 {[%clk 0:02:56]} 7. e4 {[%clk 0:02:41]}  a6 {[%clk 0:02:56]} 8. a4 {[%clk 0:02:39]}  b4 {[%clk 0:02:55]} 9. h3 {[%clk 0:02:40]}  Bd7 {[%clk 0:02:52]} 10. Bd3 {[%clk 0:02:39]}  a5 {[%clk 0:02:45]} 11. O-O {[%clk 0:02:36]}  g5 {[%clk 0:02:44]} 12. e5 {[%clk 0:02:20]}  dxe5 {[%clk 0:02:38]} 13. Nbd2 {[%clk 0:02:18]}  g4 {[%clk 0:02:35]} 14. Ne4 {[%clk 0:02:16]}  Qf4 {[%clk 0:02:26]} 15. Nfd2 {[%clk 0:02:14]}  gxh3 {[%clk 0:02:19]} 16. g3 {[%clk 0:02:15]}  Qh6 {[%clk 0:02:11]} 17. Kh2 {[%clk 0:02:14]}  Na6 {[%clk 0:02:02]} 18. Bxa6 {[%clk 0:02:10]}  Qxa6 {[%clk 0:01:56]} 19. Nxc5 {[%clk 0:02:09]}  Qc4 {[%clk 0:01:56]} 20. Nxc4 {[%clk 0:02:09]} 1-0


[Site "https://www.chess.com"]

[Event "Early Titled Tuesday Blitz | February 8 2022"]
[White "Reprintsev, Alexander"]
[Black "Blokhin, Sofia"]
[WhiteFideId "14100541"]
[BlackFideId "4508190"]
[WhiteElo "2126"]
[BlackElo "1762"]
[Result "1-0"]
[Round "04"]
[TimeControl "180+1"]
[Date "2022.02.08"]
[WhiteClock "0:01:26"]
[BlackClock "0:00:05"]

1. e4 {[%clk 0:02:43]}  c5 {[%clk 0:02:58]} 2. b3 {[%clk 0:02:43]}  e5 {[%clk 0:02:51]} 3. Bb2 {[%clk 0:02:43]}  d6 {[%clk 0:02:48]} 4. f4 {[%clk 0:02:43]}  Qc7 {[%clk 0:02:30]} 5. Nc3 {[%clk 0:02:41]}  Nf6 {[%clk 0:02:25]} 6. Qf3 {[%clk 0:02:36]}  a6 {[%clk 0:02:23]} 7. O-O-O {[%clk 0:02:21]}  Nc6 {[%clk 0:02:21]} 8. Nd5 {[%clk 0:02:20]}  Nxd5 {[%clk 0:02:08]} 9. exd5 {[%clk 0:02:21]}  Nd4 {[%clk 0:02:07]} 10. Qf2 {[%clk 0:02:19]}  Be7 {[%clk 0:01:49]} 11. Nf3 {[%clk 0:02:19]}  f6 {[%clk 0:01:43]} 12. Bd3 {[%clk 0:02:18]}  b5 {[%clk 0:01:39]} 13. Kb1 {[%clk 0:02:17]}  Bb7 {[%clk 0:01:29]} 14. Nxd4 {[%clk 0:02:16]}  exd4 {[%clk 0:01:23]} 15. c4 {[%clk 0:02:08]}  b4 {[%clk 0:01:17]} 16. Rde1 {[%clk 0:02:07]}  O-O-O {[%clk 0:01:06]} 17. Re6 {[%clk 0:02:07]}  Rd7 {[%clk 0:01:04]} 18. Rhe1 {[%clk 0:02:07]}  Kb8 {[%clk 0:00:52]} 19. Bf5 {[%clk 0:02:04]}  g6 {[%clk 0:00:51]} 20. Bh3 {[%clk 0:02:00]}  f5 {[%clk 0:00:50]} 21. g4 {[%clk 0:02:00]}  Rf8 {[%clk 0:00:27]} 22. gxf5 {[%clk 0:02:00]}  gxf5 {[%clk 0:00:27]} 23. Rh6 {[%clk 0:01:59]}  a5 {[%clk 0:00:21]} 24. Ree6 {[%clk 0:01:58]}  a4 {[%clk 0:00:20]} 25. d3 {[%clk 0:01:58]}  axb3 {[%clk 0:00:19]} 26. axb3 {[%clk 0:01:58]}  Ka7 {[%clk 0:00:19]} 27. Kc2 {[%clk 0:01:57]}  Kb6 {[%clk 0:00:18]} 28. Bxd4 {[%clk 0:01:55]}  cxd4 {[%clk 0:00:17]} 29. Qxd4+ {[%clk 0:01:56]}  Qc5 {[%clk 0:00:18]} 30. Qxc5+ {[%clk 0:01:54]}  Kxc5 {[%clk 0:00:18]} 31. Rxh7 {[%clk 0:01:54]}  Re8 {[%clk 0:00:15]} 32. Bxf5 {[%clk 0:01:54]}  Rc7 {[%clk 0:00:15]} 33. Bg6 {[%clk 0:01:50]}  Bc8 {[%clk 0:00:14]} 34. d4+ {[%clk 0:01:42]}  Kxd4 {[%clk 0:00:13]} 35. Re4+ {[%clk 0:01:42]}  Kc5 {[%clk 0:00:13]} 36. Bxe8 {[%clk 0:01:43]}  Bf5 {[%clk 0:00:12]} 37. Kd2 {[%clk 0:01:35]}  Bxe4 {[%clk 0:00:09]} 38. Rg7 {[%clk 0:01:34]}  Kd4 {[%clk 0:00:08]} 39. h4 {[%clk 0:01:30]}  Rxc4 {[%clk 0:00:05]} 40. bxc4 {[%clk 0:01:30]}  b3 {[%clk 0:00:06]} 41. Rxe7 {[%clk 0:01:29]}  b2 {[%clk 0:00:06]} 42. Rxe4+ {[%clk 0:01:30]}  Kxe4 {[%clk 0:00:05]} 43. Kc2 {[%clk 0:01:26]} 1-0


[Site "https://www.chess.com"]

[Event "Early Titled Tuesday Blitz | February 8 2022"]
[White "Roman, Rodrigo"]
[Black "Flis, Pawel"]
[WhiteFideId "3701220"]
[BlackFideId "1112864"]
[WhiteElo "2001"]
[BlackElo "1735"]
[Result "1-0"]
[Round "04"]
[TimeControl "180+1"]
[Date "2022.02.08"]
[WhiteClock "0:00:25"]
[BlackClock "0:00:13"]

1. d4 {[%clk 0:03:00]}  Nf6 {[%clk 0:02:59]} 2. Nf3 {[%clk 0:03:00]}  c5 {[%clk 0:02:59]} 3. e3 {[%clk 0:03:00]}  g6 {[%clk 0:02:57]} 4. Bd3 {[%clk 0:02:59]}  Bg7 {[%clk 0:02:57]} 5. b3 {[%clk 0:02:58]}  cxd4 {[%clk 0:02:55]} 6. exd4 {[%clk 0:02:58]}  O-O {[%clk 0:02:54]} 7. Bb2 {[%clk 0:02:58]}  d5 {[%clk 0:02:47]} 8. O-O {[%clk 0:02:58]}  Nc6 {[%clk 0:02:47]} 9. Nbd2 {[%clk 0:02:56]}  Re8 {[%clk 0:02:31]} 10. Re1 {[%clk 0:02:55]}  Qb6 {[%clk 0:02:25]} 11. Nf1 {[%clk 0:02:33]}  Bg4 {[%clk 0:02:18]} 12. Be2 {[%clk 0:02:29]}  Ne4 {[%clk 0:02:13]} 13. c3 {[%clk 0:02:26]}  Qa5 {[%clk 0:02:04]} 14. Qd3 {[%clk 0:02:25]}  Bf5 {[%clk 0:01:55]} 15. Qe3 {[%clk 0:02:15]}  Rac8 {[%clk 0:01:38]} 16. Ng3 {[%clk 0:02:05]}  Nxg3 {[%clk 0:01:34]} 17. hxg3 {[%clk 0:02:06]}  e5 {[%clk 0:01:21]} 18. dxe5 {[%clk 0:02:04]}  Nxe5 {[%clk 0:01:17]} 19. Qd2 {[%clk 0:01:42]}  Nxf3+ {[%clk 0:00:54]} 20. Bxf3 {[%clk 0:01:43]}  Rxe1+ {[%clk 0:00:51]} 21. Qxe1 {[%clk 0:01:41]}  Bxc3 {[%clk 0:00:49]} 22. Bxc3 {[%clk 0:01:40]}  Qxc3 {[%clk 0:00:49]} 23. Bxd5 {[%clk 0:01:34]}  Qxe1+ {[%clk 0:00:45]} 24. Rxe1 {[%clk 0:01:35]}  Rc7 {[%clk 0:00:44]} 25. f3 {[%clk 0:01:23]}  Kg7 {[%clk 0:00:42]} 26. Kf2 {[%clk 0:01:22]}  a5 {[%clk 0:00:41]} 27. Bc4 {[%clk 0:01:16]}  Rd7 {[%clk 0:00:34]} 28. g4 {[%clk 0:01:14]}  Rd2+ {[%clk 0:00:29]} 29. Re2 {[%clk 0:01:06]}  Rxe2+ {[%clk 0:00:28]} 30. Kxe2 {[%clk 0:01:07]}  Bd7 {[%clk 0:00:26]} 31. a4 {[%clk 0:01:06]}  Bc6 {[%clk 0:00:26]} 32. Ke3 {[%clk 0:01:06]}  Kf6 {[%clk 0:00:26]} 33. g3 {[%clk 0:01:06]}  Ke5 {[%clk 0:00:25]} 34. f4+ {[%clk 0:01:04]}  Kf6 {[%clk 0:00:25]} 35. g5+ {[%clk 0:00:59]}  Ke7 {[%clk 0:00:24]} 36. Kd4 {[%clk 0:00:57]}  b6 {[%clk 0:00:22]} 37. Ke5 {[%clk 0:00:56]}  Bf3 {[%clk 0:00:20]} 38. Bd5 {[%clk 0:00:36]}  Bd1 {[%clk 0:00:20]} 39. Bc4 {[%clk 0:00:31]}  Bc2 {[%clk 0:00:19]} 40. Kd5 {[%clk 0:00:21]}  Bf5 {[%clk 0:00:18]} 41. Kc6 {[%clk 0:00:20]}  Be6 {[%clk 0:00:15]} 42. Kxb6 {[%clk 0:00:19]}  Bxc4 {[%clk 0:00:13]} 43. bxc4 {[%clk 0:00:20]}  Kd6 {[%clk 0:00:14]} 44. Kxa5 {[%clk 0:00:20]}  Kc5 {[%clk 0:00:14]} 45. Ka6 {[%clk 0:00:20]}  Kc6 {[%clk 0:00:14]} 46. a5 {[%clk 0:00:20]}  Kc7 {[%clk 0:00:12]} 47. Ka7 {[%clk 0:00:20]}  Kc6 {[%clk 0:00:12]} 48. a6 {[%clk 0:00:20]}  Kc7 {[%clk 0:00:12]} 49. c5 {[%clk 0:00:20]}  Kc6 {[%clk 0:00:12]} 50. Kb8 {[%clk 0:00:20]}  Kxc5 {[%clk 0:00:12]} 51. a7 {[%clk 0:00:21]}  Kd4 {[%clk 0:00:13]} 52. a8=Q {[%clk 0:00:22]}  Ke3 {[%clk 0:00:14]} 53. Qa7+ {[%clk 0:00:22]}  Kf3 {[%clk 0:00:12]} 54. Qxf7 {[%clk 0:00:23]}  Kxg3 {[%clk 0:00:12]} 55. Qxh7 {[%clk 0:00:24]}  Kxf4 {[%clk 0:00:13]} 56. Qxg6 {[%clk 0:00:24]}  Kg4 {[%clk 0:00:13]} 57. Qf6 {[%clk 0:00:25]} 1-0


[Site "https://www.chess.com"]

[Event "Early Titled Tuesday Blitz | February 8 2022"]
[White "Rytenko, Vsevolod"]
[Black "Stefanov, Plamen"]
[WhiteFideId "14133040"]
[BlackFideId "2900980"]
[WhiteElo "2144"]
[BlackElo "2137"]
[Result "1-0"]
[Round "04"]
[TimeControl "180+1"]
[Date "2022.02.08"]
[WhiteClock "0:01:00"]
[BlackClock "0:01:52"]

1. d4 {[%clk 0:03:00]}  Nf6 {[%clk 0:02:58]} 2. c4 {[%clk 0:03:00]}  c5 {[%clk 0:02:57]} 3. Nf3 {[%clk 0:03:00]}  cxd4 {[%clk 0:02:56]} 4. Nxd4 {[%clk 0:03:01]}  Nc6 {[%clk 0:02:57]} 5. g3 {[%clk 0:03:00]}  e6 {[%clk 0:02:57]} 6. Bg2 {[%clk 0:03:00]}  Bb4+ {[%clk 0:02:57]} 7. Nc3 {[%clk 0:02:59]}  O-O {[%clk 0:02:54]} 8. O-O {[%clk 0:02:58]}  Bxc3 {[%clk 0:02:45]} 9. bxc3 {[%clk 0:02:58]}  Qa5 {[%clk 0:02:46]} 10. Bd2 {[%clk 0:02:44]}  Qh5 {[%clk 0:02:43]} 11. e4 {[%clk 0:02:37]}  Ne5 {[%clk 0:02:39]} 12. Qb3 {[%clk 0:02:12]}  Nfg4 {[%clk 0:02:34]} 13. h3 {[%clk 0:02:11]}  d5 {[%clk 0:02:28]} 14. cxd5 {[%clk 0:02:02]}  exd5 {[%clk 0:02:28]} 15. hxg4 {[%clk 0:01:42]}  Nxg4 {[%clk 0:02:26]} 16. Rfe1 {[%clk 0:01:34]}  Qh2+ {[%clk 0:02:24]} 17. Kf1 {[%clk 0:01:34]}  dxe4 {[%clk 0:02:24]} 18. Rxe4 {[%clk 0:01:24]}  h5 {[%clk 0:02:21]} 19. Nf3 {[%clk 0:01:22]}  Be6 {[%clk 0:01:58]} 20. Rxe6 {[%clk 0:01:16]}  fxe6 {[%clk 0:01:58]} 21. Nxh2 {[%clk 0:01:16]}  Rxf2+ {[%clk 0:01:56]} 22. Kg1 {[%clk 0:01:16]}  Rxd2 {[%clk 0:01:55]} 23. Nxg4 {[%clk 0:01:15]}  hxg4 {[%clk 0:01:55]} 24. Qxe6+ {[%clk 0:01:15]}  Kh8 {[%clk 0:01:54]} 25. Re1 {[%clk 0:01:09]}  Rf8 {[%clk 0:01:52]} 26. Qxg4 {[%clk 0:01:00]} 1-0


[Site "https://www.chess.com"]

[Event "Early Titled Tuesday Blitz | February 8 2022"]
[White "Sadhwani, Raunak"]
[Black "Svane, Frederik"]
[WhiteFideId "35093487"]
[BlackFideId "12923044"]
[WhiteElo "2616"]
[BlackElo "2459"]
[Result "1/2-1/2"]
[Round "04"]
[TimeControl "180+1"]
[Date "2022.02.08"]
[WhiteClock "0:00:51"]
[BlackClock "0:00:39"]

1. d4 {[%clk 0:03:00]}  Nf6 {[%clk 0:03:00]} 2. c4 {[%clk 0:03:00]}  e6 {[%clk 0:03:00]} 3. g3 {[%clk 0:03:01]}  d5 {[%clk 0:03:00]} 4. Bg2 {[%clk 0:03:01]}  Bb4+ {[%clk 0:03:01]} 5. Bd2 {[%clk 0:03:01]}  Be7 {[%clk 0:03:01]} 6. Nf3 {[%clk 0:03:01]}  O-O {[%clk 0:03:01]} 7. O-O {[%clk 0:03:01]}  c6 {[%clk 0:03:02]} 8. Bc3 {[%clk 0:03:01]}  b6 {[%clk 0:02:48]} 9. Nbd2 {[%clk 0:03:00]}  Ba6 {[%clk 0:02:48]} 10. a4 {[%clk 0:02:55]}  Nbd7 {[%clk 0:02:41]} 11. b3 {[%clk 0:02:48]}  Qc8 {[%clk 0:02:23]} 12. Qc2 {[%clk 0:02:39]}  c5 {[%clk 0:02:05]} 13. Rfc1 {[%clk 0:02:38]}  cxd4 {[%clk 0:01:58]} 14. Nxd4 {[%clk 0:02:36]}  Bb7 {[%clk 0:01:58]} 15. a5 {[%clk 0:02:33]}  bxa5 {[%clk 0:01:53]} 16. Bxa5 {[%clk 0:02:03]}  Bc5 {[%clk 0:01:50]} 17. e3 {[%clk 0:01:54]}  dxc4 {[%clk 0:01:46]} 18. Qxc4 {[%clk 0:01:52]}  Bxg2 {[%clk 0:01:46]} 19. Kxg2 {[%clk 0:01:53]}  Qb7+ {[%clk 0:01:46]} 20. Kg1 {[%clk 0:01:47]}  Rfc8 {[%clk 0:01:15]} 21. b4 {[%clk 0:01:35]}  Bf8 {[%clk 0:01:05]} 22. Qb5 {[%clk 0:01:32]}  Qxb5 {[%clk 0:00:46]} 23. Nxb5 {[%clk 0:01:33]}  a6 {[%clk 0:00:47]} 24. Rxc8 {[%clk 0:01:11]}  Rxc8 {[%clk 0:00:47]} 25. Nc7 {[%clk 0:01:12]}  Bxb4 {[%clk 0:00:43]} 26. Bxb4 {[%clk 0:01:05]}  Rxc7 {[%clk 0:00:43]} 27. Rxa6 {[%clk 0:01:06]}  h6 {[%clk 0:00:44]} 28. Ra1 {[%clk 0:01:02]}  Ne5 {[%clk 0:00:37]} 29. Bd6 {[%clk 0:00:53]}  Rd7 {[%clk 0:00:38]} 30. Bxe5 {[%clk 0:00:53]}  Rxd2 {[%clk 0:00:38]} 31. Bxf6 {[%clk 0:00:51]}  gxf6 {[%clk 0:00:39]} 32. Kg2 {[%clk 0:00:51]} 1/2-1/2


[Site "https://www.chess.com"]

[Event "Early Titled Tuesday Blitz | February 8 2022"]
[White "Salimova, Nurgyul"]
[Black "Chigaev, Maksim"]
[WhiteFideId "2915138"]
[BlackFideId "4108116"]
[WhiteElo "2185"]
[BlackElo "2502"]
[Result "0-1"]
[Round "04"]
[TimeControl "180+1"]
[Date "2022.02.08"]
[WhiteClock "0:00:04"]
[BlackClock "0:00:06"]

1. d4 {[%clk 0:03:00]}  Nf6 {[%clk 0:03:00]} 2. Nc3 {[%clk 0:03:00]}  e6 {[%clk 0:02:54]} 3. e4 {[%clk 0:03:00]}  d5 {[%clk 0:02:54]} 4. Bg5 {[%clk 0:02:57]}  h6 {[%clk 0:02:52]} 5. Bxf6 {[%clk 0:02:54]}  Qxf6 {[%clk 0:02:53]} 6. exd5 {[%clk 0:02:19]}  Bb4 {[%clk 0:02:53]} 7. Bc4 {[%clk 0:02:06]}  O-O {[%clk 0:02:50]} 8. Ne2 {[%clk 0:01:41]}  exd5 {[%clk 0:02:44]} 9. Bxd5 {[%clk 0:01:32]}  Rd8 {[%clk 0:02:38]} 10. Bf3 {[%clk 0:01:26]}  Nc6 {[%clk 0:02:33]} 11. O-O {[%clk 0:01:11]}  Nxd4 {[%clk 0:01:24]} 12. Nxd4 {[%clk 0:01:12]}  Rxd4 {[%clk 0:01:24]} 13. Qe2 {[%clk 0:01:12]}  c6 {[%clk 0:01:00]} 14. Ne4 {[%clk 0:01:07]}  Rxe4 {[%clk 0:00:54]} 15. Qxe4 {[%clk 0:01:01]}  Bf8 {[%clk 0:00:51]} 16. c3 {[%clk 0:00:56]}  Bf5 {[%clk 0:00:49]} 17. Qe3 {[%clk 0:00:52]}  Bd6 {[%clk 0:00:36]} 18. Rad1 {[%clk 0:00:45]}  Bc7 {[%clk 0:00:35]} 19. Rfe1 {[%clk 0:00:37]}  Be6 {[%clk 0:00:29]} 20. b3 {[%clk 0:00:26]}  Bb6 {[%clk 0:00:25]} 21. Qc1 {[%clk 0:00:20]}  Qh4 {[%clk 0:00:20]} 22. Qc2 {[%clk 0:00:10]}  Rf8 {[%clk 0:00:10]} 23. g3 {[%clk 0:00:09]}  Qf6 {[%clk 0:00:11]} 24. Bg2 {[%clk 0:00:07]}  h5 {[%clk 0:00:10]} 25. h4 {[%clk 0:00:07]}  g5 {[%clk 0:00:10]} 26. hxg5 {[%clk 0:00:07]}  Qxg5 {[%clk 0:00:11]} 27. Qd3 {[%clk 0:00:05]}  h4 {[%clk 0:00:10]} 28. gxh4 {[%clk 0:00:04]}  Qxh4 {[%clk 0:00:11]} 29. Re2 {[%clk 0:00:03]}  Bg4 {[%clk 0:00:08]} 30. Rde1 {[%clk 0:00:03]}  Bxe2 {[%clk 0:00:08]} 31. Rxe2 {[%clk 0:00:04]}  Rd8 {[%clk 0:00:08]} 32. Qc2 {[%clk 0:00:04]}  Kg7 {[%clk 0:00:08]} 33. Kf1 {[%clk 0:00:04]}  Rd6 {[%clk 0:00:08]} 34. Qc1 {[%clk 0:00:03]}  Rf6 {[%clk 0:00:09]} 35. Qe1 {[%clk 0:00:03]}  a5 {[%clk 0:00:07]} 36. Qd2 {[%clk 0:00:04]}  a4 {[%clk 0:00:06]} 37. b4 {[%clk 0:00:05]}  a3 {[%clk 0:00:06]} 38. Re4 {[%clk 0:00:05]}  Qh5 {[%clk 0:00:06]} 39. Rf4 {[%clk 0:00:05]}  Qb5+ {[%clk 0:00:06]} 40. Kg1 {[%clk 0:00:05]}  Qg5 {[%clk 0:00:06]} 41. Rc4 {[%clk 0:00:04]}  Qxd2 {[%clk 0:00:06]} 0-1


[Site "https://www.chess.com"]